fUST/lending_fUST_20250326
["ID","MTS","AMOUNT","RATE_DAILY","PERIOD"]
[356689565,1742959832725,-500.0,0.00015936,2]
[356689567,1742959832734,-500.0,0.00015936,2]
[356689569,1742959832744,-500.0,0.00015936,2]
[356689571,1742959832753,-500.0,0.00015936,2]
[356689573,1742959832762,-500.0,0.00015936,2]
[356689575,1742959832772,-197.91682196,0.00015989,2]
[356689577,1742959832781,-347.80789463,0.00015989,2]
[356689580,1742959832791,-600.0,0.00015989,2]
[356689583,1742959832800,-500.0,0.00015999,2]
[356689586,1742959832809,-68942.02532182,0.00016,7]
[356689589,1742959832820,-32629.58042404,0.00016,7]
[356689591,1742959832830,-622.2,0.00016044,2]
[356689593,1742959832839,-645.2214,0.00016099,2]
[356689594,1742959832848,-731.75,0.00016273,2]
[356689595,1742959832857,-500.0,0.00016273,2]
[356689596,1742959832867,-731.75,0.00016547,2]
[356689597,1742959832876,-500.0,0.00016547,2]
[356689598,1742959832885,-731.75,0.00016821,2]
[356689599,1742959832895,-500.0,0.00016821,2]
[356689600,1742959832904,-1287.42872466,0.00016969,2]
[356689601,1742959832914,-834.83451184,0.00017,7]
[356689602,1742959832923,-731.75,0.00017095,2]
[356689603,1742959832933,-731.75,0.00017369,2]
[356689604,1742959832942,-731.75,0.00017643,2]
[356689605,1742959832951,-731.75,0.00017917,2]
[356689606,1742959832960,-1287.42872466,0.00018038,2]
[356689607,1742959832970,-731.75,0.00018191,2]
[356689609,1742959832979,-731.75,0.00018465,2]
[356689611,1742959832988,-302.15627781,0.00018637,2]
[356689613,1742959832997,-731.75,0.00018739,2]
[356689615,1742959833006,-500.0,0.00018979,2]
[356689617,1742959833016,-1000.0,0.00018979,2]
[356689619,1742959833025,-731.75,0.00019013,2]
[356689620,1742959833036,-1287.42872466,0.00019107,2]
[356689621,1742959833045,-500.0,0.00019178,2]
[356689622,1742959833054,-731.75,0.00019287,2]
[356689623,1742959833064,-731.75,0.00019561,2]
[356689624,1742959833075,-349.127,0.0001963,2]
[356689625,1742959833085,-512.40253442,0.00019813,2]
[356689626,1742959833095,-731.75,0.00019835,2]
[356689627,1742959833104,-151.28821919,0.0002,2]
[356689628,1742959833114,-160.0,0.0002,7]
[356689629,1742959833124,-160.0,0.0002,3]
[356689630,1742959833267,-731.75,0.00020109,2]
[356689631,1742959833277,-1287.42872466,0.00020176,2]
[356689632,1742959833286,-390.97,0.000202,7]
[356689633,1742959833296,-1000.0,0.00020229,2]
[356689634,1742959833305,-731.75,0.00020383,2]
[356689635,1742959833315,-731.75,0.00020657,2]
[356689636,1742959833324,-504.10819693,0.0002075,2]
[356689637,1742959833334,-359.3531643,0.00020752,2]
[356689638,1742959833343,-731.75,0.00020931,2]
[356689639,1742959833353,-731.75,0.00021205,2]
[356689640,1742959833363,-1287.42872466,0.00021245,2]
[356689641,1742959833372,-1000.0,0.00021416,2]
[356689642,1742959833382,-1000.0,0.00021416,2]
[356689643,1742959833391,-1000.0,0.00021416,2]
[356689644,1742959833400,-1000.0,0.00021416,2]
[356689645,1742959833410,-1000.0,0.00021416,2]
[356689646,1742959833419,-1000.0,0.00021416,2]
[356689647,1742959833429,-1000.0,0.00021416,2]
[356689648,1742959833439,-500.0,0.00021416,2]
[356689649,1742959833449,-1000.0,0.00021416,2]
[356689650,1742959833458,-503.05967748,0.00021416,2]
[356689651,1742959833468,-500.0,0.00021452,2]
[356689652,1742959833478,-731.75,0.00021479,2]
[356689653,1742959833487,-731.75,0.00021753,2]
[356689654,1742959833496,-731.75,0.00022027,2]
[356689655,1742959833505,-500.0,0.00022142,2]
[356689656,1742959833514,-731.78586214,0.00022301,2]
[356689657,1742959833524,-1287.42872466,0.00022314,3]
[356689658,1742959833533,-12458.93820146,0.00022409,2]
[356689659,1742959833543,-418.40181814,0.00022409,2]
[356689660,1742959833552,-160.0,0.00022409,2]
[356689661,1742959833562,-834.83451184,0.00022409,2]
[356689662,1742959833571,-160.0,0.00022542,2]
[356689663,1742959833580,-4573.30584997,0.00023,2]
[356689664,1742959833594,-1287.42872466,0.00023383,3]
[356689665,1742959833604,-418.40181814,0.00024,7]
[356689666,1742959833614,-160.0,0.00024,7]
[356689667,1742959833623,-1287.42872466,0.00024452,3]
[356689668,1742959833634,-159.21,0.00024568,2]
[356689669,1742959833643,-1389.14604263,0.00024599,2]
[356689670,1742959833653,-500.0,0.00024673,2]
[356689671,1742959833662,-1000.0,0.00024699,2]
[356689672,1742959833672,-1009.57330706,0.00024699,2]
[356689673,1742959833682,-3936.3171324,0.00024699,2]
[356689708,1742959843655,-1203.12833793,0.00024699,2]
[356689742,1742959846614,-3691.44121106,0.00024699,2]
[356689751,1742960752265,-150.0,0.000126,2]
[356689752,1742960752285,-319.0,0.00013,4]
[356689753,1742960752318,-191.42509153,0.00013264,2]
[356689754,1742960852142,-150.0,0.000128,2]
[356689755,1742960852164,-500.0,0.00013278,2]
[356689756,1742960852184,-472.74005206,0.00013544,2]
[356689758,1742960946195,-27.25994794,0.00013544,2]
[356689759,1742960946220,-500.0,0.00013577,2]
[356689760,1742960946244,-500.0,0.0001365,2]
[356689761,1742960946268,-500.0,0.00013982,2]
[356689762,1742960946296,-500.0,0.00014028,2]
[356689763,1742960946319,-500.0,0.00014285,2]
[356689764,1742960946531,-500.0,0.00014378,2]
[356689765,1742960946555,-319.0,0.000145,5]
[356689766,1742960946578,-500.0,0.00014876,2]
[356689767,1742960946605,-500.0,0.00014909,2]
[356689768,1742960946629,-500.0,0.00015155,2]
[356689769,1742960946652,-500.0,0.00015207,2]
[356689770,1742960946674,-500.0,0.00015256,2]
[356689771,1742960946697,-500.0,0.00015491,2]
[356689772,1742960946720,-500.0,0.00015601,2]
[356689773,1742960946743,-344.38206266,0.00015646,2]
[356689774,1742960952185,-155.61793734,0.00015646,2]
[356689775,1742960952208,-1097.79260814,0.000159,2]
[356689776,1742960952229,-500.0,0.00015937,2]
[356689777,1742960952250,-600.0,0.00015989,2]
[356689778,1742960952269,-500.0,0.00015999,2]
[356689779,1742960952294,-500.0,0.00015999,2]
[356689780,1742960952314,-1769.80094778,0.00016,30]
[356689781,1742960952336,-319.0,0.00016,6]
[356689782,1742960952357,-500.0,0.00016273,2]
[356689783,1742960952379,-197.36813799,0.00016273,2]
[356689784,1742960952400,-500.0,0.00016547,2]
[356689785,1742960952421,-500.0,0.00016648,2]
[356689786,1742960952441,-500.0,0.00016821,2]
[356689787,1742960952462,-500.0,0.00016889,2]
[356689788,1742960952483,-500.0,0.0001691,2]
[356689789,1742960952504,-500.0,0.00016943,2]
[356689790,1742960952525,-1097.79260794,0.00016969,2]
[356689791,1742960952556,-500.0,0.00017095,2]
[356689792,1742960952581,-500.0,0.00017214,2]
[356689793,1742960952603,-500.0,0.00017369,2]
[356689794,1742960952624,-430.20289,0.000175,7]
[356689795,1742960952645,-500.0,0.00017643,2]
[356689796,1742960952668,-432.88153382,0.00017862,2]
[356689797,1742960952688,-500.0,0.00017863,2]
[356689798,1742960952709,-500.0,0.00017863,2]
[356689799,1742960952731,-630.73734228,0.00017863,2]
[356689800,1742960952753,-500.0,0.00017863,2]
[356689801,1742960952773,-500.0,0.00017917,2]
[356689802,1742960952795,-1097.79260794,0.00018038,2]
[356689803,1742960952815,-500.0,0.00018137,2]
[356689804,1742960952836,-193.29,0.00018137,2]
[356689805,1742960952857,-500.0,0.00018191,2]
[356689806,1742960952878,-2827.49922483,0.00018311,2]
[356689807,1742960952898,-500.0,0.00018411,2]
[356689808,1742960952919,-500.0,0.00018465,2]
[356689809,1742960952940,-159.22,0.000186,2]
[356689810,1742960952961,-500.0,0.00018608,2]
[356689811,1742960952981,-537.0,0.00018685,2]
[356689812,1742960953002,-500.0,0.00018713,2]
[356689813,1742960953022,-500.0,0.00018721,2]
[356689814,1742960953042,-500.0,0.00018739,2]
[356689815,1742960953062,-500.0,0.00018861,2]
[356689816,1742960953082,-500.0,0.00019013,2]
[356689817,1742960953103,-1097.79260794,0.00019107,2]
[356689818,1742960953125,-500.0,0.00019123,2]
[356689819,1742960953146,-808.57490847,0.00019146,2]
[356689820,1742960953165,-500.0,0.00019178,2]
[356689821,1742960953186,-500.0,0.00019178,2]
[356689822,1742960953207,-500.0,0.00019178,2]
[356689823,1742960953231,-500.0,0.00019178,2]
[356689824,1742960953252,-500.0,0.00019178,2]
[356689825,1742960953273,-500.0,0.00019178,2]
[356689826,1742960953298,-493.15738428,0.00019178,2]
[356689827,1742960953319,-500.0,0.00019178,2]
[356689828,1742960953341,-500.0,0.00019178,2]
[356689829,1742960953363,-500.0,0.00019178,2]
[356689830,1742960953388,-500.0,0.00019178,2]
[356689831,1742960953408,-500.0,0.00019178,2]
[356689832,1742960953429,-500.0,0.00019178,2]
[356689833,1742960953450,-500.0,0.00019178,2]
[356689834,1742960953471,-500.0,0.00019178,2]
[356689835,1742960953491,-500.0,0.00019178,2]
[356689836,1742960953512,-500.0,0.00019178,2]
[356689837,1742960953532,-500.0,0.00019178,2]
[356689838,1742960953553,-500.0,0.00019287,2]
[356689839,1742960953577,-500.0,0.00019561,2]
[356689840,1742960953598,-500.0,0.00019835,2]
[356689841,1742960953619,-500.0,0.00020109,2]
[356689842,1742960953641,-1097.79260794,0.00020176,2]
[356689843,1742960953662,-183.68,0.000203,7]
[356689844,1742960953683,-500.0,0.00020383,2]
[356689845,1742960953704,-500.0,0.00020657,2]
[356689846,1742960953725,-500.0,0.00020931,2]
[356689847,1742960953748,-511.83050161,0.00021205,2]
[356689848,1742960953770,-1097.79260794,0.00021245,2]
[356689849,1742960953790,-500.0,0.00022029,2]
[356689850,1742960953811,-500.0,0.00022029,2]
[356689851,1742960953834,-1702.38917371,0.00022292,2]
[356689852,1742960960092,-500.0,0.000183,2]
[356689853,1742960960114,-500.0,0.000183,2]
[356689854,1742960960134,-501.17585982,0.00022294,2]
[356689855,1742960960156,-1097.79260794,0.00022314,3]
[356689856,1742960960176,-2525.683,0.00022703,2]
[356689857,1742960960197,-8604.58420022,0.00022852,2]
[356689874,1742961038341,-278.61,0.000128,2]
[356689875,1742961038350,-500.0,0.000183,2]
[356689876,1742961038359,-500.0,0.000183,2]
[356689877,1742961038369,-500.0,0.000183,2]
[356689878,1742961038379,-198.49838155,0.000183,2]
[356689899,1742961042883,-301.50161845,0.000183,2]
[356689900,1742961042893,-500.0,0.000183,2]
[356689901,1742961042904,-500.0,0.000183,2]
[356689902,1742961042913,-500.0,0.000183,2]
[356689903,1742961042924,-418.40181814,0.00022655,2]
[356689904,1742961042934,-2674.0502393,0.00022736,2]
[356689961,1742961045693,-160.0,0.00022655,2]
[356689963,1742961045703,-834.83451184,0.00022655,2]
[356689964,1742961045713,-1390.43854184,0.00022736,2]
[356689965,1742961045797,-684.3999998,0.00022736,2]
[356689966,1742961045808,-3596.60669562,0.00022736,2]
[356689967,1742961265796,2000.0,0.00014,30]
[356689968,1742961266090,2000.0,0.00014,30]
[356689969,1742961266393,2000.0,0.00014,30]
[356689970,1742961266686,2000.0,0.00014,30]
[356689971,1742961266987,2000.0,0.00014,30]
[356689972,1742961267283,2000.0,0.00014,30]
[356689973,1742961267587,2000.0,0.00014,30]
[356689974,1742961267889,2000.0,0.00014,30]
[356689975,1742961268234,2000.0,0.00014,30]
[356689976,1742961268582,2000.0,0.00014,30]
[356689978,1742962049146,-244.34702172,0.00014286,2]
[356689979,1742962052123,-252.16963472,0.00014286,2]
[356689980,1742962146113,-3.48334356,0.00014286,2]
[356689981,1742962146137,-1232.10672614,0.00014393,2]
[356689982,1742962146158,-418.40181814,0.00014393,2]
[356689983,1742962146179,-160.0,0.00014393,2]
[356689984,1742962146200,-834.83451184,0.00014393,2]
[356689985,1742962146222,-500.0,0.000144,2]
[356689986,1742962146243,-500.0,0.00015776,2]
[356689987,1742962146263,-472.18613465,0.00015826,2]
[356689988,1742962146284,-500.0,0.00015944,2]
[356689989,1742962146304,-516.6360008,0.00016433,2]
[356689990,1742962146324,-505.34514732,0.00016433,2]
[356689991,1742962146345,-500.0,0.000174,2]
[356689992,1742962146367,-500.0,0.000174,2]
[356689993,1742962146389,-1538.0308889,0.00017898,3]
[356689994,1742962146411,-1161.43991305,0.000179,2]
[356689995,1742962146432,-1915.0,0.000181,2]
[356689996,1742962146453,-2263.0,0.000181,2]
[356689997,1742962146474,-400.0,0.000181,2]
[356689998,1742962146495,-500.0,0.00018115,2]
[356689999,1742962146515,-159.22,0.000186,2]
[356690000,1742962146537,-627.60004398,0.00018757,2]
[356690001,1742962146560,-1161.43991286,0.000189,2]
[356690002,1742962146580,-500.0,0.00018946,2]
[356690003,1742962146601,-500.0,0.00019879,2]
[356690004,1742962146622,-704.20505422,0.000199,2]
[356690005,1742962150141,-408.50637285,0.000144,2]
[356690006,1742962169117,-91.49362715,0.000144,2]
[356690007,1742962169139,-500.0,0.000144,2]
[356690008,1742962169163,-500.0,0.000144,2]
[356690009,1742962169187,-500.0,0.000144,2]
[356690010,1742962169215,-500.0,0.000144,2]
[356690011,1742962169238,-500.0,0.000144,2]
[356690012,1742962169259,-500.0,0.000144,2]
[356690013,1742962169282,-500.0,0.000144,2]
[356690014,1742962169307,-382.17063265,0.000144,2]
[356690037,1742962232018,-117.82936735,0.000144,2]
[356690039,1742962232028,-500.0,0.000144,2]
[356690041,1742962232037,-504.02397516,0.00019879,2]
[356690043,1742962232046,-1000.0,0.00019879,2]
[356690044,1742962232055,-1000.0,0.00019879,2]
[356690045,1742962232064,-1000.0,0.00019879,2]
[356690046,1742962232074,-1028.25453316,0.00019879,2]
[356690047,1742962232083,-1000.0,0.00019879,2]
[356690048,1742962232092,-1000.0,0.00019879,2]
[356690049,1742962232102,-1000.0,0.00019879,2]
[356690050,1742962232111,-482.2181562,0.00019879,2]
[356690068,1742962242951,-517.7818438,0.00019879,2]
[356690069,1742962242961,-398.1940333,0.00019879,2]
[356690070,1742962242971,-500.0,0.000199,2]
[356690071,1742962242980,-504.9364371,0.000199,2]
[356690072,1742962242990,-500.0,0.000199,2]
[356690073,1742962242999,-2013.684383,0.0002,7]
[356690074,1742962243009,-547.20807327,0.00020079,2]
[356690075,1742962243018,-1113.44906021,0.00022879,2]
[356690076,1742962243027,-1000.0,0.00022879,2]
[356690077,1742962243037,-501.80846169,0.00023471,2]
[356690078,1742962243046,-1144.05777876,0.00024399,2]
[356690098,1742963137085,-500.0,0.00015858,2]
[356690099,1742963137106,-400.89586043,0.00016937,2]
[356690106,1742963371129,-500.0,0.00016471,2]
[356690107,1742963371151,-500.0,0.00016589,2]
[356690108,1742963371172,-500.0,0.00016641,2]
[356690109,1742963371192,-500.0,0.00016878,2]
[356690110,1742963371213,-500.0,0.00017096,2]
[356690111,1742963371234,-500.0,0.00017659,2]
[356690112,1742963371255,-430.0,0.00017874,2]
[356690267,1742964336116,-150.0,0.000132,2]
[356690268,1742964336136,-500.0,0.00016377,2]
[356690269,1742964336156,-34.47216842,0.0001841,2]
[356690270,1742964409185,1062.1,8e-05,2]
[356690272,1742964431141,-533.94674878,0.0001841,2]
[356690273,1742964431162,-160.0,0.00018782,2]
[356690274,1742964431182,-2818.0204699,0.00019296,2]
[356690275,1742964431201,-466.79,0.00019386,3]
[356690276,1742964431220,-233.4,0.00019386,3]
[356690277,1742964431239,-700.22,0.00019386,3]
[356690278,1742964431258,-300.0,0.00019395,2]
[356690279,1742964431279,-500.0,0.00019395,2]
[356690280,1742964431300,-499.23970936,0.00019395,2]
[356690281,1742964431320,-179.62475675,0.00019396,2]
[356690282,1742964546158,-174.42109678,0.000135,2]
[356690283,1742964552092,-9.25890322,0.000135,2]
[356690284,1742964552113,-500.0,0.000171,2]
[356690285,1742964552134,-191.42509153,0.00018341,2]
[356690286,1742964552155,-300.0,0.00019394,2]
[356690287,1742964552176,-500.0,0.00019395,2]
[356690288,1742964552196,-500.0,0.00019395,2]
[356690289,1742964552217,-500.0,0.00019395,2]
[356690290,1742964552236,-500.0,0.00019395,2]
[356690291,1742964552256,-500.0,0.00019395,2]
[356690292,1742964552276,-500.0,0.00019395,2]
[356690293,1742964552296,-500.0,0.00019395,2]
[356690294,1742964552319,-500.0,0.00019395,2]
[356690295,1742964552340,-500.0,0.00019395,2]
[356690296,1742964552362,-500.0,0.00019395,2]
[356690297,1742964552382,-500.0,0.00019395,2]
[356690298,1742964552404,-152.10120591,0.00019395,2]
[356690299,1742964552425,-500.0,0.00019395,2]
[356690300,1742964552445,-1455.13325069,0.00019396,2]
[356690301,1742964568123,-233.39,0.00019386,3]
[356690302,1742964568144,-700.21,0.00019386,3]
[356690303,1742964568164,-53842.71782107,0.00019396,2]
[356690304,1742964568187,-21929.26481807,0.00019396,2]
[356690318,1742964632367,-600.0,0.00019396,2]
[356690319,1742964632377,-617.93426814,0.00019451,2]
[356690420,1742964646266,-167.35512895,0.00019451,2]
[356690421,1742964646275,-160.0,0.00019462,2]
[356690422,1742964646285,-159.19,0.000199,2]
[356690423,1742964646294,-500.0,0.00020062,2]
[356690424,1742964646304,-500.0,0.00020062,2]
[356690425,1742964646313,-500.0,0.00020062,2]
[356690426,1742964646322,-500.0,0.00020062,2]
[356690427,1742964646336,-500.0,0.00020062,2]
[356690428,1742964646346,-500.0,0.00020062,2]
[356690429,1742964646355,-500.0,0.00020062,2]
[356690430,1742964646365,-500.0,0.00020062,2]
[356690431,1742964646375,-500.0,0.00020062,2]
[356690432,1742964646384,-500.0,0.00020062,2]
[356690433,1742964646394,-500.0,0.00020062,2]
[356690434,1742964646404,-483.3639992,0.00020062,2]
[356690436,1742964646414,-500.0,0.00020062,2]
[356690437,1742964646425,-500.0,0.00020078,2]
[356690438,1742964646434,-183.56680066,0.00020078,2]
[356690439,1742964646444,-27648.92553588,0.00020079,2]
[356690440,1742964646454,-114302.44208918,0.00020079,2]
[356690441,1742965636099,-319.0,0.00013,4]
[356690442,1742965636121,-273.03,0.000137,2]
[356690443,1742965636143,-3179.88854178,0.00019028,2]
[356690444,1742965636172,-862.24014082,0.00019028,2]
[356690445,1742965641081,-706.6876721,0.00019028,2]
[356690446,1742965641102,-300.0,0.00019406,2]
[356690447,1742965641122,-500.0,0.00019407,2]
[356690448,1742965641142,-818.92,0.00019407,2]
[356690449,1742965641162,-416.8432376,0.00019407,2]
[356690450,1742965641183,-500.0,0.00019407,2]
[356690451,1742965641202,-542.86,0.00019407,2]
[356690452,1742965641222,-500.0,0.00019681,2]
[356690453,1742965641241,-818.92,0.00019681,2]
[356690454,1742965641262,-500.0,0.00019681,2]
[356690455,1742965641282,-542.86,0.00019681,2]
[356690456,1742965641302,-418.40181814,0.0001974,2]
[356690457,1742965641322,-160.0,0.0001974,2]
[356690458,1742965641341,-834.83451184,0.0001974,2]
[356690459,1742965641361,-5766.47652368,0.00019864,2]
[356690460,1742965643117,-244.34702172,0.00016162,2]
[356690461,1742965643141,-6692.46167778,0.00019864,2]
[356690462,1742965643164,-500.0,0.00019955,2]
[356690463,1742965643184,-818.92,0.00019955,2]
[356690464,1742965643205,-500.0,0.00019955,2]
[356690465,1742965643225,-542.86,0.00019955,2]
[356690466,1742965643246,-159.19,0.00019955,2]
[356690467,1742965643267,-255.74953997,0.00020079,2]
[356690468,1742965643287,-1201.55353606,0.00020079,7]
[356690469,1742965643307,-549.0000059,0.00020212,2]
[356690470,1742965643328,-500.0,0.00020229,2]
[356690471,1742965643349,-818.92,0.00020229,2]
[356690472,1742965643370,-500.0,0.00020229,2]
[356690473,1742965643391,-542.86,0.00020229,2]
[356690474,1742965643411,-543.275,0.00020246,2]
[356690475,1742965643431,-1922.108,0.00020246,2]
[356690476,1742965643455,-2271.647,0.00020246,2]
[356690477,1742965643477,-400.0,0.00020246,2]
[356690478,1742965643497,-600.0,0.00020462,2]
[356690479,1742965643521,-500.0,0.00020503,2]
[356690480,1742965643542,-818.92,0.00020503,2]
[356690481,1742965643563,-500.0,0.00020503,2]
[356690482,1742965643584,-542.86,0.00020503,2]
[356690483,1742965643604,-500.0,0.000206,2]
[356690484,1742965643626,-500.0,0.000206,2]
[356690485,1742965643647,-500.0,0.000206,2]
[356690486,1742965643667,-501.17585982,0.000206,2]
[356690487,1742965643688,-500.0,0.000206,2]
[356690488,1742965643709,-500.0,0.00020777,2]
[356690489,1742965643730,-818.92,0.00020777,2]
[356690490,1742965643751,-500.0,0.00020777,2]
[356690491,1742965643771,-542.86,0.00020777,2]
[356690492,1742965643791,-500.0,0.0002084,2]
[356690493,1742965643812,-500.0,0.00020877,2]
[356690494,1742965643834,-1408.73782021,0.000209,2]
[356690495,1742965643854,-850.29527051,0.00021027,2]
[356690496,1742965643874,-503.44930332,0.00021051,2]
[356690497,1742965643896,-500.0,0.00021051,2]
[356690498,1742965643916,-818.92,0.00021051,2]
[356690499,1742965643937,-500.0,0.00021051,2]
[356690500,1742965643958,-542.86,0.00021051,2]
[356690501,1742965643979,-511.83050161,0.00021325,2]
[356690502,1742965644000,-818.92,0.00021325,2]
[356690503,1742965644021,-197.0382078,0.00021325,2]
[356690504,1742965644042,-542.86,0.00021325,2]
[356690505,1742965644063,-669.10413957,0.00021334,2]
[356690506,1742965644084,-818.92,0.00021599,2]
[356690507,1742965644105,-542.86,0.00021599,2]
[356690508,1742965644127,-1408.73782011,0.00021797,3]
[356690509,1742965644149,-818.92,0.00021873,2]
[356690510,1742965644170,-542.86,0.00021873,2]
[356690511,1742965644190,-151.0,0.00021873,2]
[356690512,1742965644210,-507.79,0.00022,3]
[356690513,1742965644232,-500.0,0.00022,3]
[356690514,1742965644253,-500.0,0.00022,3]
[356690515,1742965644273,-500.0,0.00022,3]
[356690516,1742965644294,-500.0,0.00022,3]
[356690517,1742965644315,-500.0,0.00022,3]
[356690518,1742965644336,-818.92,0.00022147,2]
[356690519,1742965644358,-542.86,0.00022147,2]
[356690520,1742965644380,-818.92,0.00022421,2]
[356690521,1742965644403,-542.86,0.00022421,2]
[356690522,1742965644426,-1408.73782011,0.00022693,3]
[356690523,1742965644450,-818.92,0.00022695,2]
[356690524,1742965644471,-542.86,0.00022695,2]
[356690525,1742965644491,-818.92,0.00022969,2]
[356690526,1742965644512,-542.86,0.00022969,2]
[356690527,1742965644533,-177.980711,0.00022969,7]
[356690528,1742965644558,-500.0,0.00023187,2]
[356690529,1742965644581,-230.99485195,0.00023187,2]
[356690565,1742965838244,-418.40181814,0.0002309,2]
[356690566,1742965838254,-500.0,0.00023187,2]
[356690567,1742965838264,-160.0,0.00023187,2]
[356690568,1742965838273,-834.83451184,0.00023187,2]
[356690569,1742965838283,-8604.58420022,0.00023187,2]
[356690570,1742965838293,-3206.33093691,0.00023187,3]
[356690571,1742965838305,-4333.4,0.00023187,3]
[356690575,1742965838962,-605.55711889,0.00023187,3]
[356690576,1742965838971,-818.92,0.00023243,2]
[356690577,1742965838981,-542.86,0.00023243,2]
[356690578,1742965838990,-501.0,0.0002336,2]
[356690579,1742965838999,-500.0,0.00023509,2]
[356690580,1742965839009,-818.92,0.00023516,2]
[356690581,1742965839018,-542.86,0.00023516,2]
[356690582,1742965839032,-155.777531,0.0002359,7]
[356690583,1742965839042,-500.0,0.00023733,2]
[356690584,1742965839051,-648.2791376,0.0002379,2]
[356690585,1742965839063,-170.6408624,0.0002379,2]
[356690586,1742965839072,-124.43316816,0.0002379,2]
[356690640,1742965846674,-418.42683184,0.0002379,2]
[356690641,1742965846683,-0.67522836,0.000239,3]
[356690644,1742966739086,-160.0,0.00019992,2]
[356690645,1742966739108,-719.25349123,0.00019992,2]
[356690648,1742966832092,-834.83451184,0.00019882,2]
[356690649,1742966832114,-418.40181814,0.00019937,2]
[356690650,1742966832136,-159.19,0.0002147,2]
[356690651,1742966832157,-1004.03859516,0.00022068,2]
[356690652,1742966836128,-453.87974965,0.00022068,2]
[356690660,1742966955086,-874.64092148,0.00018138,2]
[356690666,1742967032634,-26.25493895,0.00018138,2]
[356690667,1742967032644,-160.0,0.00019861,2]
[356690668,1742967032654,-418.40181814,0.00019904,2]
[356690669,1742967032664,-834.83451184,0.00019948,2]
[356690670,1742967032674,-500.0,0.00022291,2]
[356690671,1742967032683,-500.0,0.00022565,2]
[356690672,1742967032693,-1284.52977948,0.00022612,2]
[356690768,1742967956093,-150.0,0.000145,2]
[356690769,1742967956115,-418.40181814,0.0001721,2]
[356690770,1742967956139,-135.54848256,0.0001721,2]
[356690771,1742968035131,-160.0,0.00017188,2]
[356690772,1742968035151,-160.0,0.00018213,2]
[356690773,1742968035172,-300.0,0.00018239,2]
[356690774,1742968035192,-500.0,0.0001824,2]
[356690775,1742968035212,-500.0,0.0001824,2]
[356690776,1742968035232,-930.0,0.0001824,2]
[356690777,1742968035252,-500.0,0.0001824,2]
[356690778,1742968035273,-2747.50549127,0.00020825,2]
[356690779,1742968042089,-3344.71132576,0.00020825,2]
[356690781,1742968169158,-174.42,0.000149,2]
[356690782,1742968169179,-374.38,0.00018216,2]
[356690803,1742968231872,-418.40181814,0.00018191,2]
[356690804,1742968231882,-160.0,0.00018216,2]
[356690805,1742968231892,-500.0,0.0001824,2]
[356690806,1742968231902,-500.0,0.0001824,2]
[356690807,1742968231911,-261.09301133,0.00020825,2]
[356690898,1742968240083,-2675.90318569,0.00020825,2]
[356690919,1742968243246,-40.35194925,0.00020825,2]
[356690921,1742968243256,-834.83451184,0.00021505,2]
[356690923,1742968243266,-151.0,0.00022098,2]
[356690924,1742968243277,-151.0,0.00022372,2]
[356690925,1742968243287,-159.2,0.00022496,2]
[356690926,1742968243297,-466.79,0.00022572,3]
[356690927,1742968243306,-56.46895343,0.00022572,3]